bitfinex/quotes_BTCUSD_20250101
["timestamp","ask_amount","ask_price","bid_price","bid_amount"]
[1735770596851,0.1941374,94892.0,94891.0,0.1245852]
[1735770597057,0.1991374,94892.0,94891.0,0.1245852]
[1735770597199,0.1941374,94892.0,94891.0,0.1245852]
[1735770597619,0.0011708,94892.0,94891.0,0.1245852]
[1735770598021,0.0021708,94892.0,94891.0,0.1245852]
[1735770598679,0.0021708,94892.0,94891.0,0.13336884]
[1735770600598,0.1899666,94905.0,94892.0,0.1245]
[1735770600803,0.1899666,94905.0,94894.0,0.1245]
[1735770601362,0.15,94904.0,94893.0,0.10398632]
[1735770601558,0.1899666,94905.0,94893.0,0.10398632]
[1735770601852,0.00422031,94898.0,94893.0,0.10398632]
[1735770601981,0.00422031,94898.0,94894.0,0.15820548]
[1735770602188,0.00422031,94898.0,94896.0,0.1245]
[1735770602444,0.00422031,94898.0,94897.0,0.1245]
[1735770602821,0.210717,94914.0,94898.0,0.1245]
[1735770602996,0.15,94913.0,94902.0,0.046]
[1735770603196,0.15,94913.0,94905.0,0.1245]
[1735770603397,0.1899666,94916.0,94900.0,0.1245]
[1735770603604,0.21071,94917.0,94900.0,0.1245]
[1735770603605,0.16872631,94915.0,94903.0,0.1245]
[1735770603806,0.16872631,94915.0,94907.0,0.0785]
[1735770604023,0.004,94913.0,94909.0,0.1245]
[1735770604514,0.004,94913.0,94910.0,0.046]
[1735770604724,0.004,94913.0,94908.0,0.00785]
[1735770604725,0.004,94913.0,94911.0,0.0785]
[1735770604898,0.002,94915.0,94913.0,0.0762]
[1735770605183,0.002,94915.0,94914.0,0.1249]
[1735770605429,0.210697,94923.0,94915.0,0.1249]
[1735770605665,0.210697,94923.0,94917.0,0.0487]
[1735770605892,0.210697,94923.0,94918.0,0.1249]
[1735770606133,0.210697,94923.0,94919.0,0.1249]
[1735770606361,0.421394,94923.0,94920.0,0.0487]
[1735770606556,0.210697,94923.0,94921.0,0.0762]
[1735770607131,0.210697,94923.0,94922.0,0.1249]
[1735770607380,0.360694,94924.0,94923.0,0.0762]
[1735770608668,0.0001708,94925.0,94923.0,0.0762]
[1735770608669,0.0001708,94925.0,94924.0,0.0487]
[1735770608905,0.0001708,94925.0,94924.0,0.1249]
[1735770609106,0.0001708,94925.0,94924.0,0.24137632]
[1735770610374,0.0011708,94925.0,94924.0,0.24137632]
[1735770610815,0.0011708,94925.0,94924.0,0.45207032]
[1735770611035,0.0011708,94925.0,94924.0,0.45307032]
[1735770611282,0.17109835,94940.0,94926.0,0.21069]
[1735770611485,0.17109835,94940.0,94931.0,0.0487]
[1735770611613,0.17109835,94940.0,94932.0,0.1249]
[1735770611819,0.17109835,94940.0,94935.0,0.0762]
[1735770612026,0.17109835,94940.0,94937.0,0.0487]
[1735770612259,0.17104327,94940.0,94938.0,0.0762]
[1735770612457,0.15007994,94940.0,94938.0,0.0762]
[1735770612707,7.994e-05,94940.0,94939.0,0.0487]
[1735770612879,7.994e-05,94940.0,94939.0,0.1249]
[1735770613545,0.21473894,94940.0,94939.0,0.1249]
[1735770613933,0.21673894,94940.0,94939.0,0.1249]
[1735770614231,0.21173894,94940.0,94939.0,0.1249]
[1735770614635,0.21173894,94940.0,94939.0,0.1259]
[1735770614833,0.21073894,94940.0,94939.0,0.1259]
[1735770615021,7.994e-05,94940.0,94939.0,0.1259]
[1735770616218,0.21073894,94940.0,94939.0,0.1259]
[1735770617657,0.21073894,94940.0,94939.0,0.13570778]
[1735770618873,7.994e-05,94940.0,94939.0,0.13570778]
[1735770628501,7.994e-05,94940.0,94939.0,0.13579308]
[1735770651087,7.994e-05,94940.0,94939.0,0.13479308]
[1735770651707,0.02115263,94940.0,94939.0,0.01189308]
[1735770651845,0.02132344,94940.0,94939.0,0.01189308]
[1735770652041,0.02132344,94940.0,94939.0,0.0020853]
[1735770652266,0.02132344,94940.0,94939.0,0.0010853]
[1735770652493,0.02132344,94940.0,94939.0,0.0020853]
[1735770653199,0.02132344,94940.0,94939.0,0.0010853]
[1735770653404,0.02132344,94940.0,94939.0,8.53e-05]
[1735770654741,0.04532344,94940.0,94939.0,0.0050853]
[1735770655096,0.04532344,94940.0,94939.0,8.53e-05]
[1735770656183,0.04432344,94940.0,94939.0,8.53e-05]
[1735770657106,0.40229608,94940.0,94939.0,8.53e-05]
[1735770658096,0.19432344,94940.0,94939.0,8.53e-05]
[1735770658759,0.19732344,94940.0,94939.0,8.53e-05]
[1735770658950,0.19432344,94940.0,94939.0,8.53e-05]
[1735770659262,0.19832344,94940.0,94939.0,8.53e-05]
[1735770659472,0.38806186,94940.0,94939.0,8.53e-05]
[1735770659870,0.38706186,94940.0,94939.0,8.53e-05]
[1735770660054,0.38806186,94940.0,94939.0,8.53e-05]
[1735770660938,0.49204818,94940.0,94939.0,8.53e-05]
[1735770661141,0.38806186,94940.0,94939.0,8.53e-05]
[1735770661629,0.19832344,94940.0,94939.0,8.53e-05]
[1735770665755,0.34054381,94940.0,94939.0,8.53e-05]
[1735770667487,0.19832344,94940.0,94939.0,8.53e-05]
[1735770669221,0.19732344,94940.0,94939.0,8.53e-05]
[1735770669431,0.19432344,94940.0,94939.0,8.53e-05]
[1735770669841,0.19532344,94940.0,94939.0,8.53e-05]
[1735770670111,0.19532344,94940.0,94939.0,0.0755853]
[1735770672210,0.17407994,94940.0,94939.0,0.0755853]
[1735770672387,0.25468403,94940.0,94939.0,0.0755853]
[1735770672962,0.17407994,94940.0,94939.0,0.0755853]
[1735770677249,0.15107994,94940.0,94939.0,0.0755853]
[1735770678532,0.15007994,94940.0,94939.0,0.0755853]
[1735770701759,0.15007994,94940.0,94939.0,0.0765853]
[1735770702002,0.15007994,94940.0,94939.0,0.0775853]
[1735770702669,7.994e-05,94940.0,94939.0,0.1232853]
[1735770703090,7.994e-05,94940.0,94939.0,0.13327641]
[1735770711040,7.994e-05,94940.0,94939.0,0.23726273]
[1735770723107,2.539e-05,94940.0,94939.0,0.23726273]
[1735770723648,2.539e-05,94940.0,94939.0,0.22727162]
[1735770724200,2.539e-05,94940.0,94939.0,0.23726273]
[1735770725513,2.539e-05,94940.0,94939.0,0.27525433]
[1735770725667,2.539e-05,94940.0,94939.0,0.23726273]
[1735770731348,0.00019599,94940.0,94939.0,0.23726273]
[1735770736682,0.00019599,94940.0,94939.0,0.27945773]
[1735770768554,0.00019599,94940.0,94939.0,0.27845773]
[1735770768753,0.00019599,94940.0,94939.0,0.27945773]
[1735770769085,0.00119599,94940.0,94939.0,0.28545773]
[1735770769313,0.00119599,94940.0,94939.0,0.81010773]
[1735770769518,0.00119599,94940.0,94939.0,0.80410773]
[1735770769714,0.00319599,94940.0,94939.0,0.81310773]
[1735770770065,0.00219599,94940.0,94939.0,0.81110773]
[1735770770525,0.00319599,94940.0,94939.0,0.81310773]
[1735770777918,0.00319599,94940.0,94939.0,0.90785081]
[1735770778792,0.00319599,94940.0,94939.0,0.81310773]
[1735770790415,0.00319599,94940.0,94939.0,0.76740773]
[1735770794027,0.00319599,94940.0,94939.0,0.58792141]
[1735770795159,0.00119599,94940.0,94939.0,0.58092141]
[1735770795391,0.00119599,94940.0,94939.0,0.58692141]
[1735770795605,0.00119599,94940.0,94939.0,0.57892141]
[1735770795815,0.00119599,94940.0,94939.0,0.58092141]
[1735770796000,0.00219599,94940.0,94939.0,0.58892141]
[1735770796150,0.00219599,94940.0,94939.0,0.58692141]
[1735770796353,0.00219599,94940.0,94939.0,0.58892141]
[1735770798474,0.04454609,94940.0,94939.0,0.58892141]
[1735770798690,0.00219599,94940.0,94939.0,0.58892141]
[1735770800878,0.02458443,94940.0,94939.0,0.54672641]
[1735770802236,0.02458443,94940.0,94939.0,0.54472641]
[1735770802773,0.02458443,94940.0,94939.0,0.54572641]
[1735770803285,0.02258443,94940.0,94939.0,0.53672641]
[1735770803570,0.02258443,94940.0,94939.0,0.53972641]
[1735770810232,0.00019599,94940.0,94939.0,0.53972641]
[1735770813563,0.00014099,94940.0,94939.0,0.53972641]
[1735770816891,0.00014099,94940.0,94939.0,0.60648905]
[1735770818262,0.00014099,94940.0,94939.0,0.53972641]
[1735770826127,0.21079999,94940.0,94939.0,0.53972641]
[1735770830129,0.21079999,94940.0,94939.0,0.61852641]
[1735770831544,0.00014099,94940.0,94939.0,0.61852641]
[1735770859046,0.00014099,94940.0,94939.0,0.66612641]
[1735770904208,0.00014099,94940.0,94939.0,0.6561353]
[1735770904387,0.00014099,94940.0,94939.0,0.66407201]
[1735770905088,8.619e-05,94940.0,94939.0,0.66407201]
[1735770920226,8.619e-05,94940.0,94939.0,0.76805833]
[1735770932116,8.619e-05,94940.0,94939.0,0.76484459]
[1735770934086,8.619e-05,94940.0,94939.0,0.76384459]
[1735770934571,8.619e-05,94940.0,94939.0,0.76184459]
[1735770934773,0.00108619,94940.0,94939.0,0.76984459]
[1735770935570,0.00108619,94940.0,94939.0,0.77284459]
[1735770935985,0.00108619,94940.0,94939.0,0.76984459]
[1735770936204,0.00108619,94940.0,94939.0,0.77284459]
[1735770948721,0.00108619,94940.0,94939.0,0.80431151]
[1735770949499,0.00108619,94940.0,94939.0,0.77284459]
[1735770965864,0.00108619,94940.0,94939.0,1.12373262]
[1735770966567,0.00108619,94940.0,94939.0,1.13434042]
[1735770967287,0.00108619,94940.0,94939.0,1.27687505]
[1735770967817,0.00108619,94940.0,94939.0,0.78345239]
[1735770968756,0.00108619,94940.0,94939.0,0.8784411]
[1735770970621,0.00108619,94940.0,94939.0,0.78345239]
[1735770971075,0.00108619,94940.0,94939.0,0.88743871]
[1735770972830,0.00108619,94940.0,94939.0,0.78345239]
[1735770977584,0.00108619,94940.0,94939.0,0.88345239]
[1735770978135,0.0001706,94951.0,94950.0,0.335037]
[1735770978341,0.0001706,94951.0,94950.0,0.43902332]
[1735770978551,0.0001706,94951.0,94950.0,0.44373921]
[1735770979473,0.0001706,94951.0,94950.0,0.55193047]
[1735770979474,0.0011706,94951.0,94950.0,0.55193047]
[1735770980570,0.0011706,94951.0,94950.0,1.07852047]
[1735770980933,0.0011706,94951.0,94950.0,1.08252047]
[1735770984700,0.0011706,94951.0,94950.0,1.18252047]
[1735770985637,0.0011706,94951.0,94950.0,2.38739193]
[1735770986002,0.0011706,94951.0,94950.0,2.42949193]
[1735770986209,0.0011706,94951.0,94950.0,2.44020643]
[1735770988192,0.0011706,94951.0,94950.0,2.53519514]
[1735770988732,0.00058281,94985.0,94982.0,0.210564]
[1735770988892,0.00073165,94985.0,94983.0,0.17938632]
[1735770989095,0.00073165,94985.0,94983.0,0.18408097]
[1735770989912,0.00014884,94985.0,94983.0,0.18608097]
[1735770990111,0.00014884,94985.0,94984.0,0.0444154]
[1735770990359,0.00014884,94985.0,94984.0,0.15309572]
[1735770991330,0.00014884,94985.0,94984.0,0.15409572]
[1735770992784,0.00014884,94985.0,94984.0,0.10968032]
[1735770996441,0.00014884,94985.0,94984.0,0.19228032]
[1735770996809,0.00014884,94985.0,94984.0,0.19333293]
[1735770999011,0.00014884,94985.0,94984.0,0.23833293]
[1735770999217,0.00014884,94985.0,94984.0,0.23728032]
[1735770999427,0.00014884,94985.0,94984.0,0.27140735]
[1735771000125,0.00014884,94985.0,94984.0,0.23728032]
[1735771005515,0.00014884,94985.0,94984.0,0.10968032]
[1735771006285,0.00014884,94985.0,94984.0,0.15185832]
[1735771011152,0.00023414,94985.0,94984.0,0.15185832]
[1735771012657,0.00023414,94985.0,94984.0,0.15085832]
[1735771013065,0.00023414,94985.0,94984.0,0.15185832]
[1735771013275,0.00023414,94985.0,94984.0,0.15085832]
[1735771013527,0.00023414,94985.0,94984.0,0.15185832]
[1735771014113,0.00023414,94985.0,94984.0,0.22785832]
[1735771015338,0.00023414,94985.0,94984.0,0.22685832]
[1735771015546,0.00023414,94985.0,94984.0,0.22785832]
[1735771016000,0.00023414,94985.0,94984.0,0.22685832]
[1735771016208,0.00023414,94985.0,94984.0,0.22885832]
[1735771016744,0.00023414,94985.0,94984.0,0.29950072]
[1735771016947,0.00023414,94985.0,94984.0,0.27555832]
[1735771017322,0.00023414,94985.0,94984.0,0.48611932]
[1735771019776,0.00023414,94985.0,94984.0,1.01251932]
[1735771020639,0.00023414,94985.0,94984.0,0.80195832]
[1735771024434,0.00017962,94985.0,94984.0,0.80195832]
[1735771030075,0.00017962,94985.0,94984.0,0.75978032]
[1735771040104,0.21073862,94985.0,94984.0,0.75978032]
[1735771042365,0.21073862,94985.0,94984.0,0.71408032]
[1735771043669,0.21073862,94985.0,94984.0,0.63808032]
[1735771045735,0.00017962,94985.0,94984.0,0.71878032]
[1735771047011,0.00017962,94985.0,94984.0,0.71886572]
[1735771064059,0.00017962,94985.0,94984.0,0.76566572]
[1735771069835,0.00017962,94985.0,94984.0,0.71886572]
[1735771072882,0.00017962,94985.0,94984.0,0.6148794]
[1735771075867,0.21073862,94985.0,94984.0,0.6148794]
[1735771076080,0.21073862,94985.0,94984.0,0.5341794]
[1735771076314,0.22727421,94985.0,94984.0,0.5341794]
[1735771076926,0.22727421,94985.0,94984.0,0.5331794]
[1735771077157,0.22727421,94985.0,94984.0,0.5311794]
[1735771077374,0.22727421,94985.0,94984.0,0.5321794]
[1735771077375,0.40027421,94985.0,94984.0,0.5321794]
[1735771078174,0.40027421,94985.0,94984.0,0.5311794]
[1735771078374,0.49154282,94985.0,94984.0,0.5311794]
[1735771078988,0.40127421,94985.0,94984.0,0.5311794]
[1735771079423,0.71080567,94985.0,94984.0,0.4258994]
[1735771079637,1.2102737,94985.0,94984.0,0.41467852]
[1735771079847,0.8668397,94985.0,94984.0,0.30939852]
[1735771080252,0.8638397,94985.0,94984.0,0.30939852]
[1735771080456,0.8698397,94985.0,94984.0,0.31039852]
[1735771080662,0.97382602,94985.0,94984.0,0.28934252]
[1735771080866,0.86455702,94985.0,94984.0,0.22617452]
[1735771081072,0.86455702,94985.0,94984.0,0.2009394]
[1735771081699,0.85855702,94985.0,94984.0,0.1578274]
[1735771081900,0.85855702,94985.0,94984.0,0.1367714]
[1735771082110,0.85855702,94985.0,94984.0,0.0946594]
[1735771082523,0.86355702,94985.0,94984.0,0.0956594]
[1735771082729,0.86355702,94985.0,94984.0,0.0746034]
[1735771083135,0.86355702,94985.0,94984.0,4e-07]
[1735771083336,0.81627523,94985.0,94984.0,4e-07]
[1735771083711,0.86677585,94985.0,94984.0,4e-07]
[1735771086042,1.10318831,94985.0,94984.0,4e-07]
[1735771087115,0.86677585,94985.0,94984.0,4e-07]
[1735771089573,0.74638953,94985.0,94984.0,4e-07]
[1735771093502,0.15,94969.0,94963.0,0.0833]
[1735771093656,0.023,94968.0,94963.0,0.0833]
[1735771094225,0.360606,94964.0,94963.0,0.0833]
[1735771094628,0.383606,94964.0,94963.0,0.0833]
[1735771095250,0.385606,94964.0,94963.0,0.0833]
[1735771095463,0.386606,94964.0,94963.0,0.0833]
[1735771099505,0.38679232,94964.0,94963.0,0.0833]
[1735771099703,0.40724116,94964.0,94963.0,0.0833]
[1735771101693,0.44137183,94964.0,94963.0,0.0833]
[1735771103652,0.210614,94960.0,94959.0,0.0821]
[1735771103807,0.233614,94960.0,94959.0,0.0821]
[1735771104020,0.25437152,94960.0,94959.0,0.0821]
[1735771104999,0.25537152,94960.0,94959.0,0.0821]
[1735771105400,0.32644334,94960.0,94959.0,0.0821854]
[1735771108974,0.47644334,94960.0,94959.0,8.54e-05]
[1735771109640,0.40537152,94960.0,94959.0,8.54e-05]
[1735771109990,0.40437152,94960.0,94959.0,8.54e-05]
[1735771110393,0.40637152,94960.0,94959.0,8.54e-05]
[1735771110799,0.41037152,94960.0,94959.0,8.54e-05]
[1735771111381,0.41237152,94960.0,94959.0,8.54e-05]
[1735771111747,0.41537152,94960.0,94959.0,8.54e-05]
[1735771111950,0.51935784,94960.0,94959.0,8.54e-05]
[1735771112517,0.41537152,94960.0,94959.0,8.54e-05]
[1735771114975,0.41531707,94960.0,94959.0,8.54e-05]
[1735771121809,0.60417706,94960.0,94959.0,8.54e-05]
[1735771122701,0.65139205,94960.0,94959.0,8.54e-05]
[1735771123378,0.41531707,94960.0,94959.0,8.54e-05]
[1735771124337,0.51930339,94960.0,94959.0,8.54e-05]
[1735771125574,0.41531707,94960.0,94959.0,8.54e-05]
[1735771127322,0.41031707,94960.0,94959.0,8.54e-05]
[1735771129496,0.41031707,94960.0,94959.0,0.0806854]
[1735771142347,0.41048787,94960.0,94959.0,0.0806854]
[1735771143803,0.41048787,94960.0,94959.0,0.1265854]
[1735771144414,0.51447419,94960.0,94959.0,0.1265854]
[1735771146177,0.41048787,94960.0,94959.0,0.1265854]
[1735771146526,0.39948787,94960.0,94959.0,0.1265854]
[1735771146727,0.37848787,94960.0,94959.0,0.1265854]
[1735771146966,0.38248787,94960.0,94959.0,0.1265854]
[1735771147211,0.23048787,94960.0,94959.0,0.1265854]
[1735771147623,0.23448787,94960.0,94959.0,0.1265854]
[1735771148977,0.23648787,94960.0,94959.0,0.1265854]
[1735771149965,0.23448787,94960.0,94959.0,0.1265854]
[1735771150367,0.22848787,94960.0,94959.0,0.1265854]
[1735771150568,0.23048787,94960.0,94959.0,0.1265854]
[1735771150789,0.22848787,94960.0,94959.0,0.1265854]
[1735771152293,0.20873035,94960.0,94959.0,0.1265854]
[1735771152947,0.0031708,94960.0,94959.0,0.1265854]
[1735771153743,0.14535665,94960.0,94959.0,0.1265854]
[1735771154144,0.14535665,94960.0,94959.0,0.23057172]
[1735771154359,0.14535665,94960.0,94959.0,0.23678712]
[1735771154561,0.0031708,94960.0,94959.0,0.23678712]
[1735771154773,0.0011708,94960.0,94959.0,0.23678712]
[1735771155166,0.0001708,94960.0,94959.0,0.24078712]
[1735771155573,0.0001708,94960.0,94959.0,0.23657172]
[1735771155775,0.0001708,94960.0,94959.0,0.24278712]
[1735771157083,0.0001708,94960.0,94959.0,0.2891634]
[1735771157508,0.0001708,94960.0,94959.0,0.24278712]
[1735771161616,0.210568,94981.0,94965.0,0.046]
[1735771161818,0.35258279,94982.0,94966.0,0.10398632]
[1735771161972,0.35258279,94982.0,94972.0,0.1258]
[1735771162188,0.210567,94982.0,94974.0,0.1258]
[1735771162388,0.210567,94982.0,94976.0,0.1258]
[1735771162633,0.210567,94982.0,94978.0,0.1258]
[1735771162865,0.003,94981.0,94979.0,0.22978632]
[1735771163057,0.003,94981.0,94980.0,0.1258]
[1735771163238,0.0001708,94984.0,94980.0,0.10398632]
[1735771163438,0.0001708,94984.0,94981.0,0.14998632]
[1735771163596,0.003,94982.0,94981.0,0.15618048]
[1735771164145,0.003,94982.0,94981.0,0.23598048]
[1735771164355,0.003,94982.0,94981.0,0.25957853]
[1735771164793,0.007,94982.0,94981.0,0.23598048]
[1735771164971,0.004,94982.0,94981.0,0.23598048]
[1735771165197,0.0031708,94984.0,94981.0,0.11018048]
[1735771165496,0.0031708,94984.0,94983.0,0.1258]
[1735771165697,0.0031708,94984.0,94983.0,0.22978632]
[1735771165899,0.0001708,94984.0,94983.0,0.23597855]
[1735771166809,0.0001708,94984.0,94983.0,0.23697855]
[1735771167381,0.0001708,94984.0,94983.0,0.23997855]
[1735771168958,0.0001708,94984.0,94983.0,0.30713465]
[1735771170036,0.0001708,94984.0,94983.0,0.23997855]
[1735771175142,0.0001708,94984.0,94983.0,0.24419555]
[1735771188140,0.2107318,94984.0,94983.0,0.24419555]
[1735771189568,0.2107318,94984.0,94983.0,0.09420923]
[1735771189791,0.23373681,94984.0,94983.0,0.01019223]
[1735771190071,0.23373681,94984.0,94983.0,0.004]
[1735771190466,0.23373681,94984.0,94983.0,0.001]
[1735771190703,0.210581,94975.0,94974.0,0.1221]
[1735771191022,0.210581,94975.0,94974.0,0.12830092]
[1735771191658,0.210581,94975.0,94974.0,0.65476092]
[1735771193565,0.210581,94975.0,94974.0,0.65776092]
[1735771194048,0.210578,94977.0,94974.0,0.65776092]
[1735771194792,0.210578,94977.0,94974.0,0.65476092]
[1735771195242,0.210578,94977.0,94974.0,0.65676092]
[1735771200588,0.0001708,94984.0,94976.0,0.077]
[1735771200749,0.0001708,94984.0,94977.0,0.31456332]
[1735771200958,0.0001708,94984.0,94980.0,0.1221]
[1735771201121,0.0001708,94984.0,94981.0,0.31455332]
[1735771201321,0.0001708,94984.0,94983.0,0.1221]
[1735771201523,0.0001708,94984.0,94983.0,0.22608632]
[1735771201770,0.0011708,94984.0,94983.0,0.23191111]
[1735771202018,0.0011708,94984.0,94983.0,0.44247411]
[1735771203262,0.0021708,94984.0,94983.0,0.44247411]
[1735771203463,0.0011708,94984.0,94983.0,0.96888411]
[1735771203704,0.0001708,94984.0,94983.0,0.96888411]
[1735771204037,0.0001708,94984.0,94983.0,0.77232111]
[1735771214405,0.0001708,94984.0,94983.0,0.66833479]
[1735771214617,0.0001708,94984.0,94983.0,0.54623479]
[1735771215718,0.0001708,94984.0,94983.0,0.53223479]
[1735771216099,0.0001708,94984.0,94983.0,0.53823479]
[1735771216297,0.0001708,94984.0,94983.0,0.53423479]
[1735771216500,0.0001708,94984.0,94983.0,0.53223479]
[1735771216716,0.0001708,94984.0,94983.0,0.53523479]
[1735771216902,0.0001708,94984.0,94983.0,0.53623479]
[1735771219081,6.142e-05,94984.0,94983.0,0.53623479]
[1735771219897,6.142e-05,94984.0,94983.0,0.59424701]
[1735771222150,6.142e-05,94984.0,94983.0,0.53623479]
[1735771222350,6.142e-05,94984.0,94983.0,0.66453479]
[1735771247269,6.142e-05,94984.0,94983.0,0.66470559]
[1735771267484,6.142e-05,94984.0,94983.0,0.67470559]
[1735771275423,6.142e-05,94984.0,94983.0,0.67170559]
[1735771276241,6.142e-05,94984.0,94983.0,0.67070559]
[1735771276824,6.142e-05,94984.0,94983.0,0.67170559]
[1735771303594,6.142e-05,94984.0,94983.0,0.67070559]
[1735771303889,0.00106142,94984.0,94983.0,0.67070559]
[1735771304098,6.142e-05,94984.0,94983.0,0.67070559]
[1735771304501,6.142e-05,94984.0,94983.0,0.67370559]
[1735771305090,6.142e-05,94984.0,94983.0,0.67470559]
[1735771309611,6.58e-06,94984.0,94983.0,0.67470559]
[1735771318716,6.58e-06,94984.0,94983.0,0.67370559]
[1735771319140,6.58e-06,94984.0,94983.0,0.67470559]
[1735771319400,6.58e-06,94984.0,94983.0,0.67170559]
[1735771319581,6.58e-06,94984.0,94983.0,0.67370559]
[1735771337379,6.58e-06,94984.0,94983.0,0.67270559]
[1735771337512,6.58e-06,94984.0,94983.0,0.67070559]
[1735771337717,0.00100658,94984.0,94983.0,0.67070559]
[1735771359029,6.58e-06,94984.0,94983.0,0.67070559]
[1735771379203,6.58e-06,94984.0,94983.0,0.54240559]
[1735771381844,6.58e-06,94984.0,94983.0,0.67024914]
[1735771389444,6.58e-06,94984.0,94983.0,0.77423546]
[1735771390989,6.58e-06,94984.0,94983.0,0.77823546]
[1735771397240,6.58e-06,94984.0,94983.0,1.128772]
[1735771398094,6.58e-06,94984.0,94983.0,1.1431212]
[1735771398397,6.58e-06,94984.0,94983.0,0.9349773]
[1735771399104,6.58e-06,94984.0,94983.0,0.79258466]
[1735771399689,6.58e-06,94984.0,94983.0,1.36539113]
[1735771400379,6.58e-06,94984.0,94983.0,1.31797912]
[1735771401378,6.58e-06,94984.0,94983.0,0.77823546]
[1735771402400,6.58e-06,94984.0,94983.0,0.88222178]
[1735771402605,0.00013117,94985.0,94983.0,0.88222178]
[1735771402804,0.00013117,94985.0,94984.0,0.44014732]
[1735771403163,0.00013117,94985.0,94984.0,0.97289487]
[1735771403943,0.00013117,94985.0,94984.0,0.97489487]
[1735771404124,0.00013117,94985.0,94984.0,1.07888119]
[1735771405491,0.00013117,94985.0,94984.0,1.07688119]
[1735771405647,0.00013117,94985.0,94984.0,1.07788119]
[1735771405850,0.00013117,94985.0,94984.0,1.07988119]
[1735771406150,0.00013117,94985.0,94984.0,1.07688119]
[1735771406337,0.00013117,94985.0,94984.0,1.08988119]
[1735771406630,0.00013117,94985.0,94984.0,0.97689487]
[1735771406835,0.00013117,94985.0,94984.0,0.97289487]
[1735771407004,0.00013117,94985.0,94984.0,0.98189487]
[1735771407210,0.00013117,94985.0,94984.0,0.97689487]
[1735771408524,0.00013117,94985.0,94984.0,0.98589487]
[1735771410096,0.00013117,94985.0,94984.0,0.98189487]
[1735771410284,0.00013117,94985.0,94984.0,0.97689487]
[1735771411840,0.00013117,94985.0,94984.0,0.98589487]
[1735771412220,0.00013117,94985.0,94984.0,1.08988119]
[1735771414690,0.00013117,94985.0,94984.0,1.07688119]
[1735771414838,0.00013117,94985.0,94984.0,1.08088119]
[1735771415045,0.00013117,94985.0,94984.0,1.08988119]
[1735771415224,0.00013117,94985.0,94984.0,1.08088119]
[1735771415427,0.00013117,94985.0,94984.0,1.07688119]
[1735771415633,0.00013117,94985.0,94984.0,1.08988119]
[1735771415827,0.00013117,94985.0,94984.0,1.08088119]
[1735771416292,0.00013117,94985.0,94984.0,1.08588119]
[1735771416417,0.00013117,94985.0,94984.0,1.08088119]
[1735771416820,0.00013117,94985.0,94984.0,1.08988119]
[1735771417827,0.00013117,94985.0,94984.0,1.08588119]
[1735771417997,0.00013117,94985.0,94984.0,1.08888119]
[1735771418436,0.00013117,94985.0,94984.0,1.08588119]
[1735771418714,0.00013117,94985.0,94984.0,1.07988119]
[1735771419119,0.00013117,94985.0,94984.0,1.08888119]
[1735771423015,0.00013117,94985.0,94984.0,0.98489487]
[1735771427569,0.00013117,94985.0,94984.0,0.98189487]
[1735771427944,0.00013117,94985.0,94984.0,2.18246633]
[1735771428183,0.00013117,94985.0,94984.0,2.19683021]
[1735771428367,0.00013117,94985.0,94984.0,2.18783021]
[1735771428857,0.00013117,94985.0,94984.0,2.30081653]
[1735771429182,0.00013117,94985.0,94984.0,2.18800101]
[1735771429399,0.00013117,94985.0,94984.0,2.19300101]
[1735771429604,0.00013117,94985.0,94984.0,2.19700101]
[1735771429830,0.00013117,94985.0,94984.0,2.29183257]
[1735771430035,0.00013117,94985.0,94984.0,2.40373636]
[1735771430321,0.00013117,94985.0,94984.0,2.39973636]
[1735771430524,0.00013117,94985.0,94984.0,2.40373636]
[1735771430734,0.00013117,94985.0,94984.0,2.39581889]
[1735771431183,0.00013117,94985.0,94984.0,2.29698733]
[1735771431589,0.00013117,94985.0,94984.0,2.29198733]
[1735771431809,0.00013117,94985.0,94984.0,2.65884076]
[1735771432017,0.00013117,94985.0,94984.0,2.64984076]
[1735771432445,0.00013117,94985.0,94984.0,2.65884076]
[1735771432655,0.00013117,94985.0,94984.0,2.79703883]
[1735771432956,0.00113117,94985.0,94984.0,2.80203883]
[1735771433152,0.00113117,94985.0,94984.0,1.74716737]
[1735771433521,0.00113117,94985.0,94984.0,1.8549693]
[1735771433860,0.00113117,94985.0,94984.0,1.98589151]
[1735771434065,0.00113117,94985.0,94984.0,2.00889151]
[1735771438451,0.0001706,94992.0,94990.0,0.531248]
[1735771438658,0.00022018,94991.0,94990.0,2.21647578]
[1735771438971,0.00022018,94991.0,94990.0,2.28726659]
[1735771439221,0.00022018,94991.0,94990.0,2.43726659]
[1735771439429,0.00022018,94991.0,94990.0,2.87940526]
[1735771439618,0.00022018,94991.0,94990.0,2.88340526]
[1735771439958,0.00022018,94991.0,94990.0,2.89240526]
[1735771445198,0.00022018,94991.0,94990.0,2.90307803]
[1735771447851,0.00022018,94991.0,94990.0,3.03727803]
[1735771448202,0.00022018,94991.0,94990.0,3.32153122]
[1735771449216,0.00022018,94991.0,94990.0,3.03727803]
[1735771450194,0.00022018,94991.0,94990.0,3.16829706]
[1735771450729,0.00022018,94991.0,94990.0,3.23170706]
[1735771450931,0.00022018,94991.0,94990.0,3.51596025]
[1735771451587,0.00022018,94991.0,94990.0,4.05836025]
[1735771452017,0.0001706,94992.0,94991.0,0.54761]
[1735771452164,0.0001706,94992.0,94991.0,1.00701188]
[1735771452342,0.0001708,95008.0,94992.0,0.54761]
[1735771452544,0.0001708,95008.0,94992.0,1.63992956]
[1735771452762,0.0001708,95008.0,94998.0,0.5848]
[1735771452988,0.18932097,95060.0,94998.0,0.5848]
[1735771452989,0.18932097,95063.0,95035.0,0.1]
[1735771453373,0.18932097,95063.0,95048.0,0.210419]
[1735771453374,0.00024962,95049.0,95048.0,0.210419]
[1735771453523,0.00024962,95049.0,95048.0,0.84045532]
[1735771453725,0.00024962,95049.0,95048.0,0.84682142]
[1735771454709,0.00024962,95049.0,95048.0,1.02522142]
[1735771454941,0.00324962,95049.0,95048.0,1.02522142]
[1735771455149,0.00324962,95049.0,95048.0,1.11920774]
[1735771455341,0.00024962,95049.0,95048.0,1.31440774]
[1735771455648,0.00024962,95049.0,95048.0,1.42140774]
[1735771455847,0.00024962,95049.0,95048.0,1.42340774]
[1735771457002,0.00024962,95049.0,95048.0,1.5526059]
[1735771457226,0.00024962,95049.0,95048.0,1.5756059]
[1735771457957,0.00024962,95049.0,95048.0,1.5666059]
[1735771458331,0.00024962,95049.0,95048.0,1.7268059]
[1735771458536,0.00024962,95049.0,95048.0,1.7218059]
[1735771458733,0.00024962,95049.0,95048.0,1.6196059]
[1735771458937,0.00024962,95049.0,95048.0,1.5776059]
[1735771459146,0.00024962,95049.0,95048.0,1.6176059]
[1735771459319,8.54e-05,95079.0,95078.0,0.210353]
[1735771459520,0.00013499,95079.0,95078.0,0.88863398]
[1735771460056,0.00013499,95079.0,95078.0,0.84656178]
[1735771461030,0.00013499,95079.0,95078.0,0.84756178]
[1735771461230,0.00013499,95079.0,95078.0,0.85256178]
[1735771463064,0.00013499,95079.0,95078.0,0.93366178]
[1735771464032,0.00013499,95079.0,95078.0,1.18366178]
[1735771464249,0.00013499,95079.0,95078.0,1.2876481]
[1735771464451,0.00013499,95079.0,95078.0,1.29808899]